[Event "January 9 Late 2024"]
[Site "https://www.chess.com"]
[Date "2024.01.09"]
[Round "4"]
[White "Garayev, Kanan"]
[Black "Zarnicki, Pablo"]
[Result "0-1"]
[Board "78"]
[TimeControl "180+1"]
[WhiteFideId "13406671"]
[BlackFideId "100137"]
[WhiteElo "2729"]
[BlackElo "2541"]
[WhiteTeam "AZE"]
[BlackTeam "ARG"]
[WhiteClock "0:00:21"]
[BlackClock "0:00:58"]

1. d4 {[%clk 0:03:00]}  Nf6 {[%clk 0:02:59]} 2. g3 {[%clk 0:03:01]}  g6 {[%clk 0:02:57]} 3. Bg2 {[%clk 0:02:59]}  d5 {[%clk 0:02:58]} 4. Nf3 {[%clk 0:02:59]}  Bg7 {[%clk 0:02:58]} 5. O-O {[%clk 0:03:00]}  O-O {[%clk 0:02:59]} 6. c4 {[%clk 0:03:01]}  dxc4 {[%clk 0:02:58]} 7. Ne5 {[%clk 0:02:58]}  Ng4 {[%clk 0:02:58]} 8. Nxg4 {[%clk 0:02:44]}  Bxg4 {[%clk 0:02:58]} 9. Bxb7 {[%clk 0:02:45]}  Nd7 {[%clk 0:02:57]} 10. Bxa8 {[%clk 0:02:39]}  Qxa8 {[%clk 0:02:58]} 11. f3 {[%clk 0:02:36]}  Bh3 {[%clk 0:02:57]} 12. Re1 {[%clk 0:02:36]}  c5 {[%clk 0:02:56]} 13. Be3 {[%clk 0:02:31]}  Rd8 {[%clk 0:02:51]} 14. dxc5 {[%clk 0:02:21]}  Bxb2 {[%clk 0:02:44]} 15. Nd2 {[%clk 0:02:20]}  c3 {[%clk 0:02:24]} 16. Ne4 {[%clk 0:02:15]}  Nxc5 {[%clk 0:02:17]} 17. Qc2 {[%clk 0:02:14]}  Nxe4 {[%clk 0:02:13]} 18. Qxe4 {[%clk 0:02:14]}  Qxe4 {[%clk 0:02:10]} 19. fxe4 {[%clk 0:02:15]}  c2 {[%clk 0:01:59]} 20. Rac1 {[%clk 0:01:59]}  Bxc1 {[%clk 0:01:58]} 21. Rxc1 {[%clk 0:02:00]}  Rc8 {[%clk 0:01:51]} 22. Bxa7 {[%clk 0:01:57]}  Ra8 {[%clk 0:01:51]} 23. Bc5 {[%clk 0:01:53]}  Rxa2 {[%clk 0:01:50]} 24. Bxe7 {[%clk 0:01:54]}  f5 {[%clk 0:01:47]} 25. e5 {[%clk 0:01:45]}  Kf7 {[%clk 0:01:46]} 26. Bg5 {[%clk 0:01:41]}  Ke6 {[%clk 0:01:44]} 27. Kf2 {[%clk 0:01:41]}  Kxe5 {[%clk 0:01:41]} 28. Ke3 {[%clk 0:01:42]}  Bg2 {[%clk 0:01:29]} 29. Bf4+ {[%clk 0:01:39]}  Kf6 {[%clk 0:01:29]} 30. h4 {[%clk 0:01:39]}  Be4 {[%clk 0:01:29]} 31. Kd2 {[%clk 0:01:33]}  Ke6 {[%clk 0:01:26]} 32. Kc3 {[%clk 0:01:33]}  Kd5 {[%clk 0:01:21]} 33. Kb3 {[%clk 0:01:32]}  Ra7 {[%clk 0:01:18]} 34. Kc3 {[%clk 0:01:29]}  Rb7 {[%clk 0:01:17]} 35. Bg5 {[%clk 0:01:08]}  Ke6 {[%clk 0:01:14]} 36. Bf4 {[%clk 0:01:01]}  Kf6 {[%clk 0:01:11]} 37. Bg5+ {[%clk 0:01:00]}  Kg7 {[%clk 0:01:11]} 38. Bf4 {[%clk 0:01:01]}  h6 {[%clk 0:01:11]} 39. Be5+ {[%clk 0:00:53]}  Kh7 {[%clk 0:01:09]} 40. Kd2 {[%clk 0:00:54]}  g5 {[%clk 0:01:08]} 41. hxg5 {[%clk 0:00:54]}  hxg5 {[%clk 0:01:09]} 42. Bd4 {[%clk 0:00:50]}  Kg6 {[%clk 0:01:07]} 43. Be3 {[%clk 0:00:50]}  Kh5 {[%clk 0:01:07]} 44. Ra1 {[%clk 0:00:50]}  Kg4 {[%clk 0:01:03]} 45. Rc1 {[%clk 0:00:45]}  Rd7+ {[%clk 0:00:59]} 46. Ke1 {[%clk 0:00:44]}  Rd5 {[%clk 0:00:58]} 47. Kf2 {[%clk 0:00:21]}  Rd1 {[%clk 0:00:58]} 0-1

[Event "January 9 Late 2024"]
[Site "https://www.chess.com"]
[Date "2024.01.09"]
[Round "4"]
[White "Weetik, Vjacheslav"]
[Black "Rangel, Daniel"]
[Result "1-0"]
[Board "79"]
[TimeControl "180+1"]
[WhiteFideId "4153472"]
[BlackFideId "2124475"]
[WhiteElo "2729"]
[BlackElo "2537"]
[WhiteTeam "RUS"]
[BlackTeam "BRA"]
[WhiteClock "0:00:11"]
[BlackClock "0:00:03"]

1. d4 {[%clk 0:03:00]}  Nf6 {[%clk 0:03:00]} 2. c4 {[%clk 0:03:00]}  e6 {[%clk 0:03:01]} 3. g3 {[%clk 0:03:00]}  d5 {[%clk 0:03:02]} 4. Nf3 {[%clk 0:03:00]}  Be7 {[%clk 0:03:03]} 5. Bg2 {[%clk 0:03:00]}  O-O {[%clk 0:03:03]} 6. O-O {[%clk 0:03:01]}  a5 {[%clk 0:03:03]} 7. Nbd2 {[%clk 0:02:58]}  c6 {[%clk 0:03:02]} 8. Qc2 {[%clk 0:02:58]}  b6 {[%clk 0:03:02]} 9. e4 {[%clk 0:02:58]}  Bb7 {[%clk 0:02:56]} 10. e5 {[%clk 0:02:56]}  Nfd7 {[%clk 0:02:55]} 11. h4 {[%clk 0:02:52]}  Na6 {[%clk 0:02:53]} 12. Rd1 {[%clk 0:02:38]}  Nb4 {[%clk 0:02:49]} 13. Qb1 {[%clk 0:02:30]}  dxc4 {[%clk 0:02:47]} 14. Nxc4 {[%clk 0:02:28]}  h6 {[%clk 0:02:47]} 15. Nfd2 {[%clk 0:02:12]}  Nd5 {[%clk 0:02:39]} 16. Ne4 {[%clk 0:02:12]}  c5 {[%clk 0:02:34]} 17. Ncd6 {[%clk 0:01:46]}  Bc6 {[%clk 0:02:32]} 18. Qd3 {[%clk 0:01:41]}  cxd4 {[%clk 0:02:19]} 19. Qxd4 {[%clk 0:01:41]}  Nb4 {[%clk 0:01:56]} 20. Qc4 {[%clk 0:01:14]}  Nxe5 {[%clk 0:01:46]} 21. Qc3 {[%clk 0:01:07]}  Nd7 {[%clk 0:01:15]} 22. a3 {[%clk 0:00:45]}  Bxe4 {[%clk 0:01:08]} 23. Nxe4 {[%clk 0:00:32]}  Nd5 {[%clk 0:01:06]} 24. Qf3 {[%clk 0:00:32]}  Qc7 {[%clk 0:00:57]} 25. Bd2 {[%clk 0:00:30]}  N7f6 {[%clk 0:00:57]} 26. Rac1 {[%clk 0:00:29]}  Qa7 {[%clk 0:00:55]} 27. Nxf6+ {[%clk 0:00:28]}  Bxf6 {[%clk 0:00:51]} 28. Bxh6 {[%clk 0:00:24]}  gxh6 {[%clk 0:00:47]} 29. Rxd5 {[%clk 0:00:23]}  Bxb2 {[%clk 0:00:24]} 30. Qg4+ {[%clk 0:00:19]}  Kh8 {[%clk 0:00:21]} 31. Rh5 {[%clk 0:00:18]}  Bxc1 {[%clk 0:00:19]} 32. f4 {[%clk 0:00:16]}  b5+ {[%clk 0:00:19]} 33. Kh2 {[%clk 0:00:16]}  Kh7 {[%clk 0:00:11]} 34. Qg5 {[%clk 0:00:11]}  Bxf4 {[%clk 0:00:03]} 35. Rxh6# {[%clk 0:00:11]} 1-0

[Event "January 9 Late 2024"]
[Site "https://www.chess.com"]
[Date "2024.01.09"]
[Round "4"]
[White "Avramidou, Anastasia"]
[Black "Akobian, Varuzhan"]
[Result "0-1"]
[Board "82"]
[TimeControl "180+1"]
[WhiteFideId "4239873"]
[BlackFideId "13300580"]
[WhiteElo "2522"]
[BlackElo "2724"]
[WhiteTeam "GRE"]
[BlackTeam "USA"]
[WhiteClock "0:00:01"]
[BlackClock "0:02:07"]

1. Nf3 {[%clk 0:03:00]}  Nf6 {[%clk 0:02:58]} 2. c4 {[%clk 0:03:01]}  b6 {[%clk 0:02:57]} 3. Nc3 {[%clk 0:03:01]}  Bb7 {[%clk 0:02:57]} 4. d3 {[%clk 0:02:59]}  c5 {[%clk 0:02:54]} 5. e4 {[%clk 0:02:59]}  d6 {[%clk 0:02:53]} 6. g3 {[%clk 0:03:00]}  g6 {[%clk 0:02:53]} 7. Bg2 {[%clk 0:03:00]}  Bg7 {[%clk 0:02:54]} 8. O-O {[%clk 0:03:01]}  O-O {[%clk 0:02:54]} 9. h3 {[%clk 0:02:58]}  Nc6 {[%clk 0:02:53]} 10. Be3 {[%clk 0:02:58]}  Rc8 {[%clk 0:02:46]} 11. Qd2 {[%clk 0:02:56]}  Nd7 {[%clk 0:02:43]} 12. Bh6 {[%clk 0:02:56]}  Nd4 {[%clk 0:02:41]} 13. Nxd4 {[%clk 0:02:52]}  cxd4 {[%clk 0:02:41]} 14. Bxg7 {[%clk 0:02:50]}  Kxg7 {[%clk 0:02:40]} 15. Ne2 {[%clk 0:02:51]}  e5 {[%clk 0:02:39]} 16. f4 {[%clk 0:02:51]}  f6 {[%clk 0:02:39]} 17. h4 {[%clk 0:02:47]}  a5 {[%clk 0:02:36]} 18. Bh3 {[%clk 0:02:46]}  Rc7 {[%clk 0:02:36]} 19. Bxd7 {[%clk 0:02:44]}  Rxd7 {[%clk 0:02:26]} 20. f5 {[%clk 0:02:40]}  gxf5 {[%clk 0:02:26]} 21. Rxf5 {[%clk 0:02:39]}  Bc8 {[%clk 0:02:25]} 22. g4 {[%clk 0:01:10]}  Kg8 {[%clk 0:02:19]} 23. Kh2 {[%clk 0:00:32]}  Rg7 {[%clk 0:02:18]} 24. Rg1 {[%clk 0:00:26]}  Bxf5 {[%clk 0:02:13]} 25. gxf5 {[%clk 0:00:27]}  Rxg1 {[%clk 0:02:12]} 26. Nxg1 {[%clk 0:00:28]}  Kh8 {[%clk 0:02:10]} 27. Qh6 {[%clk 0:00:15]}  Qe7 {[%clk 0:02:09]} 28. Ne2 {[%clk 0:00:14]}  Qg7 {[%clk 0:02:09]} 29. Qxg7+ {[%clk 0:00:14]}  Kxg7 {[%clk 0:02:09]} 30. Kg3 {[%clk 0:00:13]}  a4 {[%clk 0:02:09]} 31. Ng1 {[%clk 0:00:08]}  b5 {[%clk 0:02:09]} 32. b3 {[%clk 0:00:06]}  bxc4 {[%clk 0:02:07]} 33. bxc4 {[%clk 0:00:03]}  a3 {[%clk 0:02:07]} 34. Nf3 {[%clk 0:00:01]}  Rb8 {[%clk 0:02:07]} 0-1

[Event "January 9 Late 2024"]
[Site "https://www.chess.com"]
[Date "2024.01.10"]
[Round "4"]
[White "Otero Marino, Alain"]
[Black "Martinez Ramirez, Lennis"]
[Result "1-0"]
[Board "84"]
[TimeControl "180+1"]
[WhiteFideId "3524876"]
[BlackFideId "3509079"]
[WhiteElo "2502"]
[BlackElo "2705"]
[WhiteTeam "CUB"]
[BlackTeam "CUB"]
[WhiteClock "0:00:36"]
[BlackClock "0:00:00"]

1. d4 {[%clk 0:03:00]}  Nf6 {[%clk 0:02:47]} 2. Nf3 {[%clk 0:03:00]}  b6 {[%clk 0:02:47]} 3. e3 {[%clk 0:02:58]}  Bb7 {[%clk 0:02:47]} 4. Be2 {[%clk 0:02:58]}  g6 {[%clk 0:02:47]} 5. O-O {[%clk 0:02:58]}  Bg7 {[%clk 0:02:48]} 6. c4 {[%clk 0:02:58]}  O-O {[%clk 0:02:48]} 7. b3 {[%clk 0:02:58]}  c5 {[%clk 0:02:44]} 8. Bb2 {[%clk 0:02:58]}  cxd4 {[%clk 0:02:44]} 9. Nxd4 {[%clk 0:02:58]}  Nc6 {[%clk 0:02:35]} 10. Nd2 {[%clk 0:02:57]}  Qc7 {[%clk 0:02:30]} 11. N2f3 {[%clk 0:02:55]}  Rad8 {[%clk 0:02:29]} 12. Rc1 {[%clk 0:02:54]}  Qb8 {[%clk 0:02:29]} 13. Qc2 {[%clk 0:02:53]}  a6 {[%clk 0:02:23]} 14. Rfd1 {[%clk 0:02:53]}  Qa8 {[%clk 0:01:53]} 15. Bf1 {[%clk 0:02:41]}  Nb4 {[%clk 0:01:48]} 16. Qb1 {[%clk 0:02:22]}  Be4 {[%clk 0:01:47]} 17. Qa1 {[%clk 0:02:22]}  d6 {[%clk 0:01:48]} 18. a3 {[%clk 0:02:18]}  Nc6 {[%clk 0:01:47]} 19. Nxc6 {[%clk 0:02:13]}  Bxc6 {[%clk 0:01:48]} 20. Nd4 {[%clk 0:02:11]}  Bb7 {[%clk 0:01:46]} 21. b4 {[%clk 0:02:05]}  Rc8 {[%clk 0:01:45]} 22. Nb3 {[%clk 0:01:50]}  Rfd8 {[%clk 0:01:43]} 23. Bd4 {[%clk 0:01:48]}  Ne8 {[%clk 0:01:38]} 24. Bxg7 {[%clk 0:01:45]}  Nxg7 {[%clk 0:01:39]} 25. Qd4 {[%clk 0:01:45]}  b5 {[%clk 0:01:33]} 26. Na5 {[%clk 0:01:39]}  Ne6 {[%clk 0:01:31]} 27. Qb6 {[%clk 0:01:39]}  Rb8 {[%clk 0:01:30]} 28. cxb5 {[%clk 0:01:31]}  axb5 {[%clk 0:00:51]} 29. Nxb7 {[%clk 0:01:20]}  Rxb7 {[%clk 0:00:47]} 30. Qc6 {[%clk 0:01:20]}  Rc7 {[%clk 0:00:30]} 31. Qxa8 {[%clk 0:01:14]}  Rxa8 {[%clk 0:00:31]} 32. Bxb5 {[%clk 0:01:14]}  Rxa3 {[%clk 0:00:31]} 33. Bc4 {[%clk 0:01:13]}  Rb7 {[%clk 0:00:28]} 34. b5 {[%clk 0:01:05]}  Ra4 {[%clk 0:00:28]} 35. Bd5 {[%clk 0:01:03]}  Rb8 {[%clk 0:00:23]} 36. Rb1 {[%clk 0:01:01]}  Nc7 {[%clk 0:00:17]} 37. Bc6 {[%clk 0:00:56]}  Rc4 {[%clk 0:00:16]} 38. Rdc1 {[%clk 0:00:40]}  Rc5 {[%clk 0:00:09]} 39. Rxc5 {[%clk 0:00:38]}  dxc5 {[%clk 0:00:10]} 40. b6 {[%clk 0:00:38]}  Na6 {[%clk 0:00:08]} 41. b7 {[%clk 0:00:38]}  Nb4 {[%clk 0:00:08]} 42. Bf3 {[%clk 0:00:37]}  Kg7 {[%clk 0:00:00]} 43. Ra1 {[%clk 0:00:36]} 1-0

[Event "January 9 Late 2024"]
[Site "https://www.chess.com"]
[Date "2024.01.10"]
[Round "4"]
[White "Saha, Ananda"]
[Black "Adewumi, Tanitoluwa"]
[Result "0-1"]
[Board "85"]
[TimeControl "180+1"]
[WhiteFideId "2619644"]
[BlackFideId "30966396"]
[WhiteElo "2499"]
[BlackElo "2705"]
[WhiteTeam "CAN"]
[BlackTeam "USA"]
[WhiteClock "0:00:02"]
[BlackClock "0:00:05"]

1. d4 {[%clk 0:02:57]}  Nf6 {[%clk 0:02:59]} 2. Bg5 {[%clk 0:02:56]}  e6 {[%clk 0:02:59]} 3. Nd2 {[%clk 0:02:56]}  h6 {[%clk 0:02:59]} 4. Bxf6 {[%clk 0:02:54]}  Qxf6 {[%clk 0:02:58]} 5. Ngf3 {[%clk 0:02:55]}  d6 {[%clk 0:02:57]} 6. e3 {[%clk 0:02:54]}  g5 {[%clk 0:02:55]} 7. Bd3 {[%clk 0:02:45]}  Bg7 {[%clk 0:02:50]} 8. c3 {[%clk 0:02:44]}  Nc6 {[%clk 0:02:45]} 9. h3 {[%clk 0:02:44]}  Bd7 {[%clk 0:02:41]} 10. Qe2 {[%clk 0:02:43]}  O-O-O {[%clk 0:02:30]} 11. a4 {[%clk 0:02:43]}  h5 {[%clk 0:02:23]} 12. a5 {[%clk 0:02:30]}  g4 {[%clk 0:02:20]} 13. Ng1 {[%clk 0:02:26]}  e5 {[%clk 0:02:00]} 14. a6 {[%clk 0:02:18]}  b6 {[%clk 0:01:58]} 15. d5 {[%clk 0:02:06]}  Ne7 {[%clk 0:01:56]} 16. c4 {[%clk 0:01:38]}  e4 {[%clk 0:01:51]} 17. Nxe4 {[%clk 0:01:34]}  Qxb2 {[%clk 0:01:49]} 18. Qxb2 {[%clk 0:01:32]}  Bxb2 {[%clk 0:01:50]} 19. Rb1 {[%clk 0:01:30]}  Bg7 {[%clk 0:01:47]} 20. Ne2 {[%clk 0:01:28]}  Rde8 {[%clk 0:01:38]} 21. Kd2 {[%clk 0:01:27]}  gxh3 {[%clk 0:01:27]} 22. gxh3 {[%clk 0:01:27]}  Ng6 {[%clk 0:01:27]} 23. f4 {[%clk 0:01:15]}  Nh4 {[%clk 0:01:18]} 24. Ng5 {[%clk 0:00:57]}  Re7 {[%clk 0:01:13]} 25. Rbf1 {[%clk 0:00:48]}  Rhe8 {[%clk 0:01:09]} 26. e4 {[%clk 0:00:49]}  f5 {[%clk 0:01:02]} 27. Ng3 {[%clk 0:00:29]}  fxe4 {[%clk 0:01:00]} 28. N3xe4 {[%clk 0:00:24]}  Bh6 {[%clk 0:00:52]} 29. Re1 {[%clk 0:00:23]}  Bf5 {[%clk 0:00:38]} 30. Kc2 {[%clk 0:00:16]}  Bxg5 {[%clk 0:00:19]} 31. Nxd6+ {[%clk 0:00:17]}  cxd6 {[%clk 0:00:17]} 32. Rxe7 {[%clk 0:00:12]}  Rxe7 {[%clk 0:00:17]} 33. Bxf5+ {[%clk 0:00:11]}  Nxf5 {[%clk 0:00:16]} 34. fxg5 {[%clk 0:00:11]}  h4 {[%clk 0:00:15]} 35. Kc3 {[%clk 0:00:09]}  Rg7 {[%clk 0:00:15]} 36. Rf1 {[%clk 0:00:04]}  Rxg5 {[%clk 0:00:14]} 37. Kb4 {[%clk 0:00:05]}  Kd7 {[%clk 0:00:13]} 38. Rf3 {[%clk 0:00:03]}  Ne7 {[%clk 0:00:11]} 39. Rf4 {[%clk 0:00:03]}  Rxd5 {[%clk 0:00:08]} 40. Rxh4 {[%clk 0:00:02]}  Ra5 {[%clk 0:00:08]} 41. Rh7 {[%clk 0:00:03]}  Rxa6 {[%clk 0:00:09]} 42. h4 {[%clk 0:00:03]}  Ra1 {[%clk 0:00:09]} 43. h5 {[%clk 0:00:04]}  Rh1 {[%clk 0:00:08]} 44. Kb5 {[%clk 0:00:04]}  Ke6 {[%clk 0:00:09]} 45. Ka6 {[%clk 0:00:04]}  Ra1+ {[%clk 0:00:09]} 46. Kb5 {[%clk 0:00:05]}  Ra5+ {[%clk 0:00:07]} 47. Kb4 {[%clk 0:00:05]}  Kf6 {[%clk 0:00:08]} 48. Rh8 {[%clk 0:00:04]}  Kg7 {[%clk 0:00:08]} 49. Re8 {[%clk 0:00:05]}  Kf7 {[%clk 0:00:08]} 50. Rh8 {[%clk 0:00:05]}  Ng8 {[%clk 0:00:08]} 51. Rh7+ {[%clk 0:00:05]}  Kf6 {[%clk 0:00:09]} 52. Rd7 {[%clk 0:00:05]}  Ke6 {[%clk 0:00:07]} 53. Rg7 {[%clk 0:00:06]}  Nf6 {[%clk 0:00:07]} 54. h6 {[%clk 0:00:06]}  Rh5 {[%clk 0:00:07]} 55. Rxa7 {[%clk 0:00:07]}  Rxh6 {[%clk 0:00:08]} 56. Rb7 {[%clk 0:00:07]}  Nd7 {[%clk 0:00:06]} 57. Ra7 {[%clk 0:00:08]}  Rh4 {[%clk 0:00:06]} 58. Ra1 {[%clk 0:00:09]}  Ne5 {[%clk 0:00:06]} 59. Kb5 {[%clk 0:00:08]}  Rxc4 {[%clk 0:00:07]} 60. Kxb6 {[%clk 0:00:08]}  Rc5 {[%clk 0:00:07]} 61. Rd1 {[%clk 0:00:08]}  Rd5 {[%clk 0:00:08]} 62. Re1 {[%clk 0:00:08]}  Rc5 {[%clk 0:00:08]} 63. Rd1 {[%clk 0:00:08]}  Rc2 {[%clk 0:00:08]} 64. Kb5 {[%clk 0:00:08]}  d5 {[%clk 0:00:09]} 65. Kb4 {[%clk 0:00:08]}  Nc6+ {[%clk 0:00:08]} 66. Kb3 {[%clk 0:00:08]}  Rc4 {[%clk 0:00:08]} 67. Re1+ {[%clk 0:00:08]}  Kd6 {[%clk 0:00:09]} 68. Rh1 {[%clk 0:00:08]}  Kc5 {[%clk 0:00:09]} 69. Rh8 {[%clk 0:00:08]}  Na5+ {[%clk 0:00:09]} 70. Kb2 {[%clk 0:00:08]}  Kd4 {[%clk 0:00:08]} 71. Rh4+ {[%clk 0:00:08]}  Kc5 {[%clk 0:00:08]} 72. Rh8 {[%clk 0:00:09]}  d4 {[%clk 0:00:08]} 73. Rc8+ {[%clk 0:00:09]}  Nc6 {[%clk 0:00:08]} 74. Rd8 {[%clk 0:00:08]}  Rc3 {[%clk 0:00:08]} 75. Rd7 {[%clk 0:00:08]}  Kc4 {[%clk 0:00:09]} 76. Rd6 {[%clk 0:00:07]}  Nb4 {[%clk 0:00:09]} 77. Rd8 {[%clk 0:00:07]}  Rc2+ {[%clk 0:00:07]} 78. Kb1 {[%clk 0:00:07]}  d3 {[%clk 0:00:07]} 79. Rc8+ {[%clk 0:00:07]}  Kb3 {[%clk 0:00:07]} 80. Rd8 {[%clk 0:00:07]}  d2 {[%clk 0:00:06]} 81. Rd7 {[%clk 0:00:02]}  Rc1# {[%clk 0:00:05]} 0-1

[Event "January 9 Late 2024"]
[Site "https://www.chess.com"]
[Date "2024.01.09"]
[Round "4"]
[White "Novik, Maxim"]
[Black "Manolache, Marius"]
[Result "1-0"]
[Board "86"]
[TimeControl "180+1"]
[WhiteFideId "4102924"]
[BlackFideId "1201530"]
[WhiteElo "2497"]
[BlackElo "2702"]
[WhiteTeam "LTU"]
[BlackTeam "ROU"]
[WhiteClock "0:01:47"]
[BlackClock "0:01:56"]

1. e4 {[%clk 0:02:58]}  c5 {[%clk 0:03:00]} 2. Nf3 {[%clk 0:02:58]}  e6 {[%clk 0:02:59]} 3. c3 {[%clk 0:02:57]}  d5 {[%clk 0:02:59]} 4. e5 {[%clk 0:02:57]}  d4 {[%clk 0:02:58]} 5. cxd4 {[%clk 0:02:56]}  cxd4 {[%clk 0:02:58]} 6. Bd3 {[%clk 0:02:57]}  Ne7 {[%clk 0:02:51]} 7. O-O {[%clk 0:02:57]}  Nec6 {[%clk 0:02:50]} 8. Be4 {[%clk 0:02:56]}  Be7 {[%clk 0:02:49]} 9. d3 {[%clk 0:02:56]}  O-O {[%clk 0:02:48]} 10. Re1 {[%clk 0:02:56]}  Bd7 {[%clk 0:02:44]} 11. Bf4 {[%clk 0:02:55]}  Na6 {[%clk 0:02:43]} 12. Nbd2 {[%clk 0:02:44]}  Nc5 {[%clk 0:02:43]} 13. Rc1 {[%clk 0:02:38]}  Rc8 {[%clk 0:02:40]} 14. Rxc5 {[%clk 0:02:35]}  Bxc5 {[%clk 0:02:39]} 15. Bxh7+ {[%clk 0:02:33]}  Kxh7 {[%clk 0:02:39]} 16. Ng5+ {[%clk 0:02:33]}  Kg6 {[%clk 0:02:28]} 17. Qg4 {[%clk 0:02:28]}  f5 {[%clk 0:02:29]} 18. Qg3 {[%clk 0:02:18]}  Qe7 {[%clk 0:02:20]} 19. Ndf3 {[%clk 0:02:07]}  Rh8 {[%clk 0:02:15]} 20. Nh4+ {[%clk 0:02:03]}  Rxh4 {[%clk 0:02:14]} 21. Qxh4 {[%clk 0:02:03]}  Nxe5 {[%clk 0:01:57]} 22. Qh7+ {[%clk 0:01:48]}  Kf6 {[%clk 0:01:57]} 23. Bxe5+ {[%clk 0:01:47]}  Kxg5 {[%clk 0:01:56]} 24. h4+ {[%clk 0:01:47]} 1-0

[Event "January 9 Late 2024"]
[Site "https://www.chess.com"]
[Date "2024.01.09"]
[Round "4"]
[White "Tarhan, Adar"]
[Black "Lopusiewicz, Piotr"]
[Result "1-0"]
[Board "87"]
[TimeControl "180+1"]
[WhiteFideId "34544712"]
[BlackFideId "1116029"]
[WhiteElo "2700"]
[BlackElo "2495"]
[WhiteTeam "TUR"]
[BlackTeam "POL"]
[WhiteClock "0:00:33"]
[BlackClock "0:00:23"]

1. Nf3 {[%clk 0:03:00]}  Nf6 {[%clk 0:02:59]} 2. g3 {[%clk 0:03:00]}  c5 {[%clk 0:02:58]} 3. Bg2 {[%clk 0:03:01]}  Nc6 {[%clk 0:02:59]} 4. O-O {[%clk 0:03:00]}  d5 {[%clk 0:02:59]} 5. c4 {[%clk 0:03:00]}  d4 {[%clk 0:02:58]} 6. e3 {[%clk 0:03:01]}  e5 {[%clk 0:02:58]} 7. exd4 {[%clk 0:03:01]}  exd4 {[%clk 0:02:58]} 8. d3 {[%clk 0:03:01]}  Be7 {[%clk 0:02:58]} 9. Bg5 {[%clk 0:03:01]}  O-O {[%clk 0:02:57]} 10. Re1 {[%clk 0:02:59]}  h6 {[%clk 0:02:54]} 11. Bxf6 {[%clk 0:02:58]}  Bxf6 {[%clk 0:02:55]} 12. Nbd2 {[%clk 0:02:59]}  Bf5 {[%clk 0:02:52]} 13. Ne4 {[%clk 0:02:55]}  Be7 {[%clk 0:02:53]} 14. h3 {[%clk 0:02:55]}  Qc7 {[%clk 0:02:47]} 15. a3 {[%clk 0:02:54]}  a5 {[%clk 0:02:46]} 16. g4 {[%clk 0:02:52]}  Bd7 {[%clk 0:02:46]} 17. Ng3 {[%clk 0:02:47]}  Rfe8 {[%clk 0:02:45]} 18. Qd2 {[%clk 0:02:39]}  Bf8 {[%clk 0:02:43]} 19. Rxe8 {[%clk 0:02:37]}  Rxe8 {[%clk 0:02:42]} 20. Re1 {[%clk 0:02:38]}  Rxe1+ {[%clk 0:02:42]} 21. Qxe1 {[%clk 0:02:39]}  g6 {[%clk 0:02:41]} 22. Nd2 {[%clk 0:02:26]}  Qe5 {[%clk 0:02:32]} 23. Qxe5 {[%clk 0:02:22]}  Nxe5 {[%clk 0:02:32]} 24. Be4 {[%clk 0:02:14]}  Bc6 {[%clk 0:02:17]} 25. Bxc6 {[%clk 0:01:59]}  bxc6 {[%clk 0:02:16]} 26. Nb3 {[%clk 0:01:59]}  Nxd3 {[%clk 0:02:16]} 27. Nxa5 {[%clk 0:02:00]}  Nxb2 {[%clk 0:02:16]} 28. Nxc6 {[%clk 0:02:00]}  Nxc4 {[%clk 0:02:10]} 29. a4 {[%clk 0:01:59]}  d3 {[%clk 0:01:50]} 30. Kf1 {[%clk 0:01:58]}  Bg7 {[%clk 0:01:50]} 31. Ne4 {[%clk 0:01:53]}  Bd4 {[%clk 0:01:40]} 32. a5 {[%clk 0:01:50]}  f5 {[%clk 0:01:37]} 33. gxf5 {[%clk 0:01:45]}  gxf5 {[%clk 0:01:37]} 34. Ng3 {[%clk 0:01:38]}  d2 {[%clk 0:01:31]} 35. Ke2 {[%clk 0:01:37]}  Bxf2 {[%clk 0:01:31]} 36. Nxf5 {[%clk 0:01:34]}  Be1 {[%clk 0:01:28]} 37. a6 {[%clk 0:01:32]}  Nb6 {[%clk 0:01:23]} 38. Nxh6+ {[%clk 0:01:30]}  Kh7 {[%clk 0:01:22]} 39. Nf5 {[%clk 0:01:29]}  c4 {[%clk 0:01:23]} 40. Nfd4 {[%clk 0:01:25]}  Nd5 {[%clk 0:01:15]} 41. Nb5 {[%clk 0:01:18]}  Nb6 {[%clk 0:00:58]} 42. a7 {[%clk 0:01:13]}  Kg6 {[%clk 0:00:57]} 43. Ne5+ {[%clk 0:01:11]}  Kf5 {[%clk 0:00:55]} 44. Nxc4 {[%clk 0:01:10]}  Na8 {[%clk 0:00:53]} 45. Nxd2 {[%clk 0:01:07]}  Bxd2 {[%clk 0:00:53]} 46. Kxd2 {[%clk 0:01:07]}  Ke5 {[%clk 0:00:53]} 47. Kc3 {[%clk 0:01:05]}  Kd5 {[%clk 0:00:53]} 48. Kb4 {[%clk 0:01:05]}  Kc6 {[%clk 0:00:54]} 49. h4 {[%clk 0:01:05]}  Kb7 {[%clk 0:00:53]} 50. h5 {[%clk 0:01:06]}  Nb6 {[%clk 0:00:53]} 51. h6 {[%clk 0:01:06]}  Nd5+ {[%clk 0:00:53]} 52. Kc5 {[%clk 0:01:06]}  Nf6 {[%clk 0:00:54]} 53. Kd6 {[%clk 0:01:01]}  Ka8 {[%clk 0:00:46]} 54. Ke6 {[%clk 0:00:58]}  Nh7 {[%clk 0:00:42]} 55. Ke7 {[%clk 0:00:50]}  Kb7 {[%clk 0:00:41]} 56. Kd7 {[%clk 0:00:50]}  Nf6+ {[%clk 0:00:38]} 57. Ke6 {[%clk 0:00:49]}  Nh7 {[%clk 0:00:36]} 58. Kf5 {[%clk 0:00:48]}  Nf8 {[%clk 0:00:34]} 59. Kf6 {[%clk 0:00:39]}  Nh7+ {[%clk 0:00:33]} 60. Kg7 {[%clk 0:00:39]}  Ng5 {[%clk 0:00:33]} 61. Nd6+ {[%clk 0:00:32]}  Kxa7 {[%clk 0:00:32]} 62. Nf7 {[%clk 0:00:33]}  Ne6+ {[%clk 0:00:23]} 63. Kg8 {[%clk 0:00:33]} 1-0